Cogmind - Beta 12 *** ADVENTURER MODE // 2023.07.06 @ 17:19:42 Player: Blade Result: Destroyed by S-27 Virus with Autogun Performance ------------- Evolutions (6) 3000 Regions Visited (13) 2600 Robots Destroyed (164) 820 Value Destroyed (6982) 6982 Prototype IDs (9) 180 Alien Tech Used (0) 0 Bonus (1115) 1115 TOTAL SCORE: 14697 Bonus ------- High Alert Combat Kills 419 Follower Combat Kills 904 Friendly Fire -208 Cogmind --------- Core Integrity 0/1150 Matter 300/300 Energy 90/100 System Corruption 2% Temperature Cool (0) Movement Core (50) Location -4/Upper Caves Parts ------- > --- POWER (2) -------- (None) > --- PROPULSION (4) --- (None) > --- UTILITY (10) ----- Visual Processing Unit Core Analyzer Graphene Brace > --- WEAPON (3) ------- (None) > --- INVENTORY (5) ---- Armored Medium Treads Hardcell Cannon Peak State ------------ > --- POWER ------------ Neutrino Core Reinforced Fission Core > --- PROPULSION ------- Heavy Treads Biometal Heavy Treads > --- UTILITY ---------- Advanced Heat Sink Improved Cooling System Medium Storage Unit Weight Redist. System Visual Processing Unit Core Analyzer Hardened Medium Armor Plating Hardened Medium Armor Plating Graphene Brace Point Defense System > --- WEAPON ----------- Heavy Beamcaster Disruptor Cannon Enhanced Nova Cannon > --- INVENTORY -------- Light Nuclear Core Micro Fission Core Armored Medium Treads Advanced Medium Treads Myomer Leg Wave Gun Matter Neutralizer Railgun Hardcell Cannon [Rating: 105] Favorites ----------- Power Light Nuclear Core Engine Heavy Ion Engine Power Core Light Nuclear Core Reactor Antimatter Reactor Propulsion VSS Leg Treads Light Treads Leg VSS Leg Wheel Compact Wheel Hover Unit Gravmag System Flight Unit Flight Unit Utility Medium Storage Unit Device Advanced Heat Sink Storage Medium Storage Unit Processor Visual Processing Unit Hackware Hacking Suite Protection Hardened Medium Armor Plating Weapon Ion Burst Cannon Energy Gun Heavy Beamcaster Energy Cannon Ion Burst Cannon Ballistic Gun Heavy Assault Rifle Ballistic Cannon Mini Assault Cannon Special Weapon Plasma Cutter Build | -11 -10 -9 -9 -9 -7 -6 -6 -5 -4 -4 -4 -4 -4 ------- Run | Jun Mat Mat Sto Rec Fac Fac Ext Fac Fac Was Fac Upp Upp Slots Evolved 12 | . . 2 . . 4 2 . 2 2 . . . . Power 1 | . . . . . 1 . . . . . . . . Propulsion 2 | . . 1 . . 1 . . . . . . . . Utility 8 | . . 1 . . 2 2 . 2 1 . . . . Weapon 1 | . . . . . . . . . 1 . . . . Parts Attached 183 | 6 5 12 13 2 25 4 29 36 12 10 5 14 10 Power 27 | 1 . 1 2 . 2 1 5 7 3 1 . 3 1 Engine 9 | 1 . 1 2 . 1 . 2 2 . . . . . Core 16 | . . . . . 1 1 3 5 3 . . 2 1 Reactor 2 | . . . . . . . . . . 1 . 1 . Propulsion 45 | 2 1 5 4 . 6 . 6 7 6 2 . 5 1 Treads 11 | . . . 3 . . . 1 . 3 2 . 2 . Leg 25 | 2 1 . . . 6 . 2 7 3 . . 3 1 Wheel 2 | . . . . . . . 2 . . . . . . Hover 1 | . . . . . . . 1 . . . . . . Flight 6 | . . 5 1 . . . . . . . . . . Utility 54 | 1 4 . 4 . 11 3 6 10 2 4 2 3 4 Device 29 | . 1 . 2 . 5 1 3 7 1 1 2 3 3 Storage 5 | 1 3 . . . . . . 1 . . . . . Processor 4 | . . . 1 . 2 1 . . . . . . . Hackware 1 | . . . . . 1 . . . . . . . . Protection 15 | . . . 1 . 3 1 3 2 1 3 . . 1 Artifact . | . . . . . . . . . . . . . . Weapon 57 | 2 . 6 3 2 6 . 12 12 1 3 3 3 4 Energy Gun 16 | 2 . 2 . . . . . 8 . 2 . 1 1 Energy Cannon 15 | . . . 1 1 1 . 4 3 1 . 2 1 1 Ballistic Gun 19 | . . 3 1 1 3 . 8 . . 1 . 1 1 Ballistic Cannon 3 | . . . . . 1 . . . . . 1 . 1 Launcher . | . . . . . . . . . . . . . . Special Weapon 4 | . . 1 1 . 1 . . 1 . . . . . Impact Weapon . | . . . . . . . . . . . . . . Slashing Weapon . | . . . . . . . . . . . . . . Piercing Weapon . | . . . . . . . . . . . . . . Special Melee Weapon . | . . . . . . . . . . . . . . Unidentified Prototypes 6 | . . . 2 . 1 . . 1 1 1 . . . Corrupted Parts 2 | . . . . . . . 1 1 . . . . . System Corruption 9 | . . . . . . . 6 3 . . . . . Parts Lost 99 | . . 5 1 . 9 . 28 21 . . 2 15 18 Power 20 | . . 1 . . 2 . 5 6 . . 1 3 2 Propulsion 24 | . . 2 1 . 3 . 7 5 . . . 3 3 Utility 33 | . . . . . 3 . 9 8 . . 1 5 7 Weapon 22 | . . 2 . . 1 . 7 2 . . . 4 6 Highest Loss Streak 17 | . . 3 1 . 5 . 11 10 . . 2 6 17 To Critical Strikes 4 | . . . . . . . 2 2 . . . . . Average Slot Usage (%) 80 | . 85 70 94 100 82 95 65 71 64 86 87 82 71 Engine 3 | . 14 7 9 11 4 . 1 4 . . . . . Core 4 | . . . . . 4 8 3 4 9 6 5 8 4 Treads 7 | . . . 27 33 4 . 1 . 8 11 10 9 . Leg 10 | . 27 16 . . 19 26 8 15 . . . . 14 Device 14 | . . 11 14 22 10 13 8 13 18 18 15 20 21 Storage 5 | . 14 11 11 11 7 6 3 . 5 5 5 5 4 Processor 10 | . . . 2 . 10 20 20 16 10 10 10 10 10 Protection 5 | . . . 4 . 3 6 4 1 1 13 20 10 2 Energy Gun 4 | . 28 8 . . . . . 7 5 9 5 4 . Energy Cannon 5 | . . . 10 8 4 6 3 2 2 5 6 8 4 Ballistic Gun 2 | . . 5 9 10 4 . 3 . . . . . . Ballistic Cannon 1 | . . . . . 2 6 3 . . . 2 . . Naked Turns . | . . . . . . . . . . . . . . Heaviest Build 102 | 14 49 20 33 31 51 42 42 47 63 94 102 99 75 Greatest Support 151 | 20 20 20 60 60 60 48 48 66 63 151 151 151 76 Greatest Overweight (x) 13 | 2 2 3 4 . 13 1 6 7 1 . . 1 1 Average Overweight (x) . | . . . . . . . . . . . . . . Largest Inventory Capacity 15 | 8 15 10 10 10 10 10 10 10 10 10 10 10 10 Average Capacity 9 | 6 9 10 10 10 10 10 7 5 10 10 10 10 9 Most Carried 10 | . 4 10 10 10 10 10 10 5 9 10 10 10 5 Average Carried 6 | . 1 6 9 10 8 9 6 3 5 9 9 8 3 Final Capacity 10 | 8 10 10 10 10 10 10 5 10 10 10 10 10 5 Final Carried 10 | . 3 7 10 10 10 10 3 5 9 10 9 3 2 Class Distribution -------------------- 45% | Scavenger-Mutant 31% | Mutant 18% | Scavenger-Tank 4% | Hacker-Mutant Dominant Class ---------------- Mutant | -10/Materials Mutant | -9/Materials Scavenger-Mutant | -9/Storage Scavenger-Mutant | -9/Recycling Mutant | -7/Factory Mutant | -6/Factory Mutant | -6/Extension Scavenger-Mutant | -5/Factory Scavenger-Mutant | -4/Factory Scavenger-Tank | -4/Waste Scavenger-Tank | -4/Factory Scavenger-Tank | -4/Upper Caves Scavenger-Mutant | -4/Upper Caves Resources | -11 -10 -9 -9 -9 -7 -6 -6 -5 -4 -4 -4 -4 -4 ----------- Run | Jun Mat Mat Sto Rec Fac Fac Ext Fac Fac Was Fac Upp Upp Matter Collected 2787 | 213 77 115 185 29 368 21 707 444 62 158 124 160 124 Remotely . | . . . . . . . . . . . . . . Salvage Created 7692 | . 120 282 721 41 1024 133 963 1325 62 243 1064 1300 414 Parts 358 | . 11 22 53 2 45 11 34 57 2 . 53 48 20 Haulers Intercepted 2 | . . . 1 . . . 1 . . . . . . Recyclers Shooed 2 | . . . . . . . 1 . . . 1 . . Parts Field Recycled . | . . . . . . . . . . . . . . Retrieved Matter . | . . . . . . . . . . . . . . Parts Self-Destructed 59 | . . . . . . . . . . . . 40 19 Prevented 10 | . . . . . . . . . . . . 8 2 Kills | -11 -10 -9 -9 -9 -7 -6 -6 -5 -4 -4 -4 -4 -4 ------- Run | Jun Mat Mat Sto Rec Fac Fac Ext Fac Fac Was Fac Upp Upp Combat Hostiles Destroyed 145 | . 6 10 17 1 20 5 12 25 1 1 16 21 10 Melee 1 | . . . 1 . . . . . . . . . . Guns 62 | . 5 8 2 . 9 . 6 19 1 1 3 8 . Cannons 73 | . . 2 14 1 11 5 6 4 . . 9 11 10 AOE 5 | . 1 . . . . . . . . . 3 1 . Classes Destroyed 15 | . 2 2 2 . 3 . 3 1 . 1 1 . . Worker 6 | . . . 3 . . . 1 1 . . 1 . . Builder 2 | . . . . . . . 2 . . . . . . Tunneler 1 | . . . . . . . 1 . . . . . . Hauler 2 | . . . 1 . . . 1 . . . . . . Recycler 4 | . . . . . 1 . 3 . . . . . . Watcher 3 | . 1 . 1 . . . . . . . 1 . . Swarmer 42 | . 6 6 3 . . 4 3 7 . . 1 6 6 Grunt 52 | . . 2 6 . 12 . 2 9 . . 8 12 1 Brawler 2 | . . . . . . . . 1 . . 1 . . Duelist 1 | . . . . . . . . . . . 1 . . Sentry 25 | . . 2 8 1 4 1 2 3 1 . 1 1 1 Hunter 7 | . . . . . 1 . 2 1 . . 1 2 . Programmer 13 | . . . . . 3 . 1 4 . . 3 . 2 Behemoth 2 | . . . . . . . 2 . . . . . . Compactor 1 | . . . . . . . . . . 1 . . . Wasp 1 | . . . . . . . . . . . 1 . . Best Kill Streak 7 | . 3 5 5 1 7 4 4 4 1 1 7 7 5 Combat Bots Only 7 | . 3 5 3 1 6 4 4 4 1 1 7 7 5 Max Kills in Single Turn 3 | . 1 1 3 1 2 1 1 1 1 1 3 1 1 Gunslinging . | . . . . . . . . . . . . . . Exploded 3 | . 1 . . . . . . . . . 3 1 . Melee 1 | . . . 1 . . . . . . . . . . Uniques/NPCs Destroyed . | . . . . . . . . . . . . . . Combat | -11 -10 -9 -9 -9 -7 -6 -6 -5 -4 -4 -4 -4 -4 -------- Run | Jun Mat Mat Sto Rec Fac Fac Ext Fac Fac Was Fac Upp Upp Damage Taken 14971 | . 106 483 557 44 1848 161 2747 2689 59 20 1111 3402 1744 Core 2814 | . 24 113 124 . 343 . 694 359 . . 49 743 365 Absorbed by Shields 173 | . . . 37 . 82 . 54 . . . . . . Reduced by Siege Mode 15 | . . . . . . . . . . . 15 . . Redirected to Shielding 215 | . . . . . . . . 34 . 13 168 . . Regen/Repaired (Parts) 688 | . . . . . 145 . . 174 . 49 320 . . Core Remaining (%) 60 | 100 90 . . 40 51 . 18 64 . . . . . Volleys Fired 480 | . 12 40 68 3 72 6 83 78 5 1 34 46 32 Largest 3 | . 2 2 2 2 2 2 2 2 2 1 3 3 3 Hottest 282 | . 80 60 123 123 123 148 148 181 186 81 282 282 254 Shots Fired 785 | . 24 42 90 5 91 12 125 132 10 1 96 116 41 Gun 404 | . 24 37 35 3 57 . 45 97 5 1 32 60 8 Cannon 342 | . . . 24 2 33 12 80 33 5 . 64 56 33 Launcher . | . . . . . . . . . . . . . . Special 39 | . . 5 31 . 1 . . 2 . . . . . Kinetic 276 | . . 30 35 3 63 6 82 15 . . 12 15 15 Thermal 405 | . . 5 55 2 27 6 38 84 10 1 63 91 23 Explosive . | . . . . . . . . . . . . . . Electromagnetic 103 | . 24 7 . . . . 5 33 . . 21 10 3 Robot Hit Streak 29 | . 9 13 22 11 15 5 16 24 11 2 29 17 28 Robot Miss Streak 6 | . 2 3 6 . 3 4 3 2 1 . 3 3 2 Penetration Max . | . . . . . . . . . . . . . . Secondary Targets 2 | . . . . . . . . 2 . . . . . Max Gunslinging Chain 1 | . . . . . . . . 1 . . . . . Shots Hit Robots 604 | . 14 30 46 5 77 6 108 115 8 1 72 87 35 Core Hits 325 | . 7 15 28 1 52 6 50 68 3 1 37 39 18 Critical Kills 3 | . . . . . . . 1 . . . 1 1 . Critical Parts Destroyed 3 | . . . 1 . 1 . 1 . . . . . . Critical Strikes 20 | . . . 1 . 2 . 3 1 . . 6 3 4 Burn 8 | . . . . . . . . 1 . . 4 2 1 Meltdown 2 | . . . . . . . . . . . 1 1 . Destroy 4 | . . . 1 . 1 . 2 . . . . . . Blast 6 | . . . . . 1 . 1 . . . 1 . 3 Melee Attacks . | . . . . . . . . . . . . . . Impact . | . . . . . . . . . . . . . . Slashing . | . . . . . . . . . . . . . . Piercing . | . . . . . . . . . . . . . . Sneak Attacks . | . . . . . . . . . . . . . . Combat Hostiles . | . . . . . . . . . . . . . . Follow-up Attacks . | . . . . . . . . . . . . . . Damage Inflicted 16552 | . 223 277 1060 168 2060 220 3379 2877 236 24 2349 2336 1343 Guns 6443 | . 192 256 261 46 845 . 637 2298 93 24 579 1049 163 Cannons 9429 | . . . 766 122 1114 220 2641 508 143 . 1453 1286 1176 Explosions 502 | . 31 . . . . . 101 57 . . 313 . . Melee . | . . . . . . . . . . . . . . Ramming 157 | . . . 33 . 101 . . 14 . . 4 1 4 Kinetic 4000 | . . 204 261 46 953 26 1330 209 . . 303 177 491 Thermal 10995 | . 31 21 766 122 1006 194 1896 2146 236 24 1796 2044 713 Explosive . | . . . . . . . . . . . . . . Electromagnetic 1400 | . 192 52 . . . . 153 508 . . 246 114 135 Impact . | . . . . . . . . . . . . . . Slashing . | . . . . . . . . . . . . . . Piercing . | . . . . . . . . . . . . . . Highest Corruption 17 | . . . . . 2 4 10 17 . . 1 1 2 Average Corruption 3 | . . . . . 1 4 5 7 . . 1 1 1 Corruption Purged . | . . . . . . . . . . . . . . Corruption Blocked . | . . . . . . . . . . . . . . Effects 106 | . . . . . 22 . 23 46 . . 4 4 7 Message Errors 25 | . . . . . 7 . 7 9 . . 2 . . Matter Fused 20 | . . . . . 3 . 4 11 . . 1 . 1 Heat Flow Errors 16 | . . . . . 4 . 2 8 . . . . 2 Energy Discharges 15 | . . . . . 2 . 4 8 . . . 1 . Parts Rejected 4 | . . . . . . . 2 1 . . . . 1 Data Loss (minor) 11 | . . . . . 3 . 2 3 . . . 2 1 Data Loss (major) 6 | . . . . . 2 . 1 2 . . . . 1 Misfires 3 | . . . . . . . . 2 . . 1 . . Alerts 3 | . . . . . 1 . . 1 . . . . 1 Misdirections 1 | . . . . . . . . 1 . . . . . Weapon Failures 2 | . . . . . . . 1 . . . . 1 . Overload Shots . | . . . . . . . . . . . . . . Overflow Damage 226 | . . . 18 . 5 . 68 6 10 . 47 36 36 Projectiles 194 | . . . 18 . 5 . 63 6 10 . 20 36 36 Explosions 32 | . . . . . . . 5 . . . 27 . . Melee . | . . . . . . . . . . . . . . Knockbacks 13 | . . . . . . . 5 . . . . . 8 Impact . | . . . . . . . . . . . . . . Kinetic 10 | . . . . . . . 4 . . . . . 6 Secondary 3 | . . . . . . . 1 . . . . . 2 Self-Inflicted Damage 101 | . 24 . . . . . . . . . 77 . . Shots 2 | . 1 . . . . . . . . . 1 . . Rammed 11 | . . . 3 . 6 . . . . . 1 1 . Targets Rammed 35 | . . 1 6 . 22 . . 2 . . 1 1 2 Kicked 21 | . . 1 . . 16 . . 2 . . . . 2 Crushed 3 | . . . 3 . . . . . . . . . . Highest Temperature 790 | . 66 17 214 54 583 81 350 422 192 38 502 790 202 Average Temperature 132 | . 26 4 82 30 201 40 102 76 76 38 174 212 58 Received Heat Transfer 3754 | . . 174 199 27 861 . 660 765 18 . 255 540 255 Effects 41 | . . . . . 12 . 4 2 . . 1 19 3 Shutdowns 12 | . . . . . 3 . . 1 . . . 8 . Energy Bleed 4 | . . . . . 1 . . 1 . . . 2 . Interference 14 | . . . . . 2 . 4 . . . . 5 3 Matter Decay 1 | . . . . . 1 . . . . . . . . Short Circuit 3 | . . . . . 2 . . . . . 1 . . Damage (minor) 1 | . . . . . . . . . . . . 1 . Damage (major) 2 | . . . . . 2 . . . . . . . . Damage (core) 4 | . . . . . 1 . . . . . . 3 . Siege Activations 1 | . . . . . . . . . . . 1 . . Total Turns 13 | . . . . . . . . . . . 13 . . Longest Duration 13 | . . . . . . . . . . . 13 . . Robots Corrupted 1 | . . . . . . . . 1 . . . . . Combat Hostiles 1 | . . . . . . . . 1 . . . . . Parts Fried 4 | . . . . . . . 2 2 . . . . . Impact Corruptions . | . . . . . . . . . . . . . . Robots Melted 3 | . . . . . . . . 1 . . 1 1 . Combat Hostiles 3 | . . . . . . . . 1 . . 1 1 . Parts Melted 29 | . 1 . . 1 1 . . 5 . . 7 12 2 Heat Transferred 14164 | . 50 74 900 150 1175 225 2150 3579 296 37 2198 2590 740 Parts Sabotaged . | . . . . . . . . . . . . . . Parts Stolen . | . . . . . . . . . . . . . . Parts Stripped . | . . . . . . . . . . . . . . Power Chain Reactions 4 | . 1 . . . . . 1 1 . . 1 . . Missiles Intercepted . | . . . . . . . . . . . . . . Alert | -11 -10 -9 -9 -9 -7 -6 -6 -5 -4 -4 -4 -4 -4 ------- Run | Jun Mat Mat Sto Rec Fac Fac Ext Fac Fac Was Fac Upp Upp Peak Influence 1126 | . 200 219 426 94 171 167 150 230 95 14 1126 . . Initial 74 | . . 9 48 74 . 12 70 22 35 . . . . Average 126 | . 80 68 240 64 63 87 65 94 46 8 605 . . Maximum Alert Level 4 | . 1 1 2 . . . . 1 . . 4 . . Low Security (%) 83 | 100 88 85 39 100 100 100 100 85 100 100 12 . . Level 1 11 | . 11 14 54 . . . . 14 . . 28 . . Level 2 1 | . . . 5 . . . . . . . 12 . . Level 3 3 | . . . . . . . . . . . 44 . . Level 4 . | . . . . . . . . . . . 1 . . Level 5 . | . . . . . . . . . . . . . . High Security . | . . . . . . . . . . . . . . Max Security . | . . . . . . . . . . . . . . Squads Dispatched 22 | . . 1 1 . 5 . 1 7 . . 7 . . Investigation 2 | . . . . . . . 1 1 . . . . . Extermination 7 | . . . . . 3 . . 3 . . 1 . . Reinforcement 8 | . . 1 1 . 2 . . 1 . . 3 . . Assault 2 | . . . . . . . . . . . 2 . . Garrison 3 | . . . . . . . . 2 . . 1 . . Intercept . | . . . . . . . . . . . . . . Searches Triggered . | . . . . . . . . . . . . . . Construction Impeded 1 | . . . . . . . . . . . 1 . . Haulers Reinforced 1 | . . . . . . . . . . . 1 . . Active Scanning Responses . | . . . . . . . . . . . . . . Cargo Convoy Interrupts . | . . . . . . . . . . . . . . Stealth | -11 -10 -9 -9 -9 -7 -6 -6 -5 -4 -4 -4 -4 -4 --------- Run | Jun Mat Mat Sto Rec Fac Fac Ext Fac Fac Was Fac Upp Upp Distress Signals 12 | . 1 2 3 . 1 . 2 . . . 3 . . Communications Jammed . | . . . . . . . . . . . . . . Distress Signals . | . . . . . . . . . . . . . . Times Spotted 242 | . 10 21 25 1 31 6 23 36 2 1 42 22 22 Peak Tracking Total 11 | . 3 8 7 1 4 4 5 6 1 1 7 7 11 Tactical Retreats 12 | . 1 2 1 . 1 1 1 2 . . 2 . 1 Traps | -11 -10 -9 -9 -9 -7 -6 -6 -5 -4 -4 -4 -4 -4 ------- Run | Jun Mat Mat Sto Rec Fac Fac Ext Fac Fac Was Fac Upp Upp Traps Triggered 7 | . 2 . 2 . 1 1 . . 1 . . . . Indirectly . | . . . . . . . . . . . . . . Trap Hack Attempts . | . . . . . . . . . . . . . . Triggered . | . . . . . . . . . . . . . . Disarmed 6 | . . 6 . . . . . . . . . . . Reprogrammed . | . . . . . . . . . . . . . . Reused . | . . . . . . . . . . . . . . Traps Extracted . | . . . . . . . . . . . . . . Installed . | . . . . . . . . . . . . . . Triggered 3 | . . . . . . . . . . . . 2 1 Machines | -11 -10 -9 -9 -9 -7 -6 -6 -5 -4 -4 -4 -4 -4 ---------- Run | Jun Mat Mat Sto Rec Fac Fac Ext Fac Fac Was Fac Upp Upp Machines Disabled 10 | . . . 1 . . . 1 . . . 5 2 1 Max in Single Turn 1 | . . . 1 . . . 1 . . . . 1 1 Garrison Access 2 | . . . . . . . . 1 . . 1 . . Machines Repaired . | . . . . . . . . . . . . . . Machines Sabotaged . | . . . . . . . . . . . . . . Overloaded Fab Kills . | . . . . . . . . . . . . . . Hacking | -11 -10 -9 -9 -9 -7 -6 -6 -5 -4 -4 -4 -4 -4 --------- Run | Jun Mat Mat Sto Rec Fac Fac Ext Fac Fac Was Fac Upp Upp Machines Accessed 36 | . 5 3 5 6 5 2 1 4 1 . 2 2 . Terminals 19 | . 4 2 5 3 2 1 1 1 . . . . . Fabricators 3 | . . . . . 1 1 . . 1 . . . . Repair Stations 4 | . . 1 . . 1 . . 1 . . 1 . . Recycling Units 6 | . 1 . . 3 . . . 1 . . 1 . . Scanalyzers . | . . . . . . . . . . . . . . Garrison Access 2 | . . . . . 1 . . 1 . . . . . Total Hacks 97 | . 19 10 10 13 12 5 5 9 1 . 3 10 . Successful 62 | . 12 6 7 9 7 2 . 6 . . 3 10 . Failed 35 | . 7 4 3 4 5 3 5 3 1 . . . . Catastrophic 5 | . . . . . 2 1 1 1 . . . . . Database Lockouts . | . . . . . . . . . . . . . . Manual 3 | . . 2 1 . . . . . . . . . . Terminals 50 | . 17 5 10 5 4 3 5 1 . . . . . Fabricators 6 | . . . . . 3 2 . . 1 . . . . Repair Stations 16 | . . 5 . . 4 . . 5 . . 2 . . Recycling Units 12 | . 2 . . 8 . . . 1 . . 1 . . Scanalyzers . | . . . . . . . . . . . . . . Garrison Access 3 | . . . . . 1 . . 2 . . . . . Terminal Hacks 40 | . 11 5 7 2 4 1 . . . . . 10 . Record 12 | . 1 2 . . . . . . . . . 9 . Robot Analysis 1 | . 1 . . . . . . . . . . . . Prototype ID Bank 2 | . . . 1 . 1 . . . . . . . . Open Door 4 | . . . 3 . . . . . . . . 1 . Branch Access Points 3 | . . 1 1 1 . . . . . . . . . Emergency Access Points 2 | . 1 . 1 . . . . . . . . . . Alert Level 5 | . 1 1 1 1 1 . . . . . . . . Unreport Threat 1 | . 1 . . . . . . . . . . . . Locate Traps 2 | . 2 . . . . . . . . . . . . Disarm Traps 1 | . . 1 . . . . . . . . . . . Registered Components 1 | . 1 . . . . . . . . . . . . Zone Layout 6 | . 3 . . . 2 1 . . . . . . . Fabricator Hacks 1 | . . . . . . 1 . . . . . . . Network Status 1 | . . . . . . 1 . . . . . . . Repair Station Hacks 10 | . . 1 . . 3 . . 4 . . 2 . . Scan Component 5 | . . . . . 2 . . 2 . . 1 . . Repair 4 | . . . . . 1 . . 2 . . 1 . . Refit 1 | . . 1 . . . . . . . . . . . Recycling Unit Hacks 10 | . 1 . . 7 . . . 1 . . 1 . . Process 3 | . . . . 3 . . . . . . . . . Report Inventory 5 | . . . . 3 . . . 1 . . 1 . . Retrieve Components 2 | . 1 . . 1 . . . . . . . . . Scanalyzer . | . . . . . . . . . . . . . . Garrison Access Hacks 1 | . . . . . . . . 1 . . . . . Seal Access 1 | . . . . . . . . 1 . . . . . Unauthorized Hacks . | . . . . . . . . . . . . . . Terminals . | . . . . . . . . . . . . . . Fabricators . | . . . . . . . . . . . . . . Repair Stations . | . . . . . . . . . . . . . . Recycling Units . | . . . . . . . . . . . . . . Scanalyzers . | . . . . . . . . . . . . . . Garrison Access . | . . . . . . . . . . . . . . Data Cores Recovered . | . . . . . . . . . . . . . . Used . | . . . . . . . . . . . . . . Hacking Detections 24 | . 4 2 2 4 4 2 1 4 . . 1 . . Full Trace Events 2 | . . . . . . . 1 1 . . . . . Feedback Events . | . . . . . . . . . . . . . . Feedback Blocked . | . . . . . . . . . . . . . . Robot Schematics Acquired . | . . . . . . . . . . . . . . Robots Built . | . . . . . . . . . . . . . . Authchips . | . . . . . . . . . . . . . . Time . | . . . . . . . . . . . . . . Total Robot Build Rating . | . . . . . . . . . . . . . . Part Schematics Acquired . | . . . . . . . . . . . . . . Parts Built . | . . . . . . . . . . . . . . Authchips . | . . . . . . . . . . . . . . Time . | . . . . . . . . . . . . . . Total Part Build Rating . | . . . . . . . . . . . . . . Parts Repaired 4 | . . . . . 1 . . 2 . . 1 . . Time 237 | . . . . . 100 . . 63 . . 74 . . Parts Recycled . | . . . . . . . . . . . . . . Recycled Matter 21 | . . . . 21 . . . . . . . . . Retrieved Matter . | . . . . . . . . . . . . . . Retrieved Components 9 | . 7 . . 2 . . . . . . . . . Parts Scanalyzed . | . . . . . . . . . . . . . . Part Schematics Acquired . | . . . . . . . . . . . . . . Parts Damaged . | . . . . . . . . . . . . . . Bothacking | -11 -10 -9 -9 -9 -7 -6 -6 -5 -4 -4 -4 -4 -4 ------------ Run | Jun Mat Mat Sto Rec Fac Fac Ext Fac Fac Was Fac Upp Upp Used RIF Installer . | . . . . . . . . . . . . . . Robots Hacked 1 | . . . . . 1 . . . . . . . . Non-combat . | . . . . . . . . . . . . . . Combat 1 | . . . . . 1 . . . . . . . . Robot Hacks Applied 1 | . . . . . 1 . . . . . . . . parse_system 1 | . . . . . 1 . . . . . . . . Relay Couplers Released 2 | . . . . . . . . . . . 2 . . Machine Destruction 2 | . . . . . . . . . . . 2 . . Fabnet Peak Effective % . | . . . . . . . . . . . . . . Robots Rewired . | . . . . . . . . . . . . . . Allies Hacked 4 | . . . . . . . . . . . 4 . . Hacks Repelled . | . . . . . . . . . . . . . . Allies | -11 -10 -9 -9 -9 -7 -6 -6 -5 -4 -4 -4 -4 -4 -------- Run | Jun Mat Mat Sto Rec Fac Fac Ext Fac Fac Was Fac Upp Upp Total Allies 20 | . . . . . . . . . . 20 . . . Largest Group 20 | . . . . . . . . . . 20 19 . . Highest-Rated Group 661 | . . . . . . . . . . 661 629 . . Highest-Rated Ally 50 | . . . . . . . . . . 50 50 . . Total Orders 2 | . . . . . . . . 2 . . . . . EXPLORE 2 | . . . . . . . . 2 . . . . . Ally Attacks 300 | . . . . . . . . . . 43 257 . . Total Damage 6454 | . . . . . . . . . . 1029 5425 . . Kills 35 | . . . . . . . . . . 2 33 . . Allies Corrupted 1 | . . . . . . . . . . . 1 . . Allies Melted . | . . . . . . . . . . . . . . Intel | -11 -10 -9 -9 -9 -7 -6 -6 -5 -4 -4 -4 -4 -4 ------- Run | Jun Mat Mat Sto Rec Fac Fac Ext Fac Fac Was Fac Upp Upp Robot Analysis Total 1 | . 1 . . . . . . . . . . . . Derelict Logs Recovered 1 | . . . . . . . . . . . . 1 . Drone Launches 2 | . . . . . . . . 2 . . . . . Drone Recoveries . | . . . . . . . . . . . . . . Exploration | -11 -10 -9 -9 -9 -7 -6 -6 -5 -4 -4 -4 -4 -4 ------------- Run | Jun Mat Mat Sto Rec Fac Fac Ext Fac Fac Was Fac Upp Upp Turns Passed 11274 | 65 512 464 904 534 2204 256 1003 1721 488 546 737 1179 661 Spaces Moved 6282 | 49 361 392 434 324 1111 215 435 875 282 341 354 648 461 Core 51 | 9 . . 10 . 1 . 24 2 . . . . 5 Treads 2641 | . . . 367 324 313 . 72 . 277 341 354 593 . Legs 3344 | 40 361 220 . . 797 215 322 873 5 . . 55 456 Wheels 17 | . . . . . . . 17 . . . . . . Hover . | . . . . . . . . . . . . . . Flight 229 | . . 172 57 . . . . . . . . . . Fastest Speed 34 | 50 120 34 34 160 90 90 80 120 157 152 152 120 50 Average Speed 141 | 115 120 83 145 160 162 95 152 138 159 152 152 150 119 Slowest Speed 700 | 150 260 280 360 160 700 180 350 400 190 157 152 250 190 Overloaded Moves . | . . . . . . . . . . . . . . Propulsion Burnouts . | . . . . . . . . . . . . . . Robots Hopped 10 | . . 10 . . . . . . . . . . . Cave-ins Triggered . | . . . . . . . . . . . . . . Exploration Rate (%) 39 | 4 47 37 58 67 29 7 45 14 6 96 10 70 56 Regions Visited 13 Branch Regions 5 Pre-discovered Areas 1 | . . . . . . . . . . . . 1 . Known Exits Taken 2 | . . 1 1 . . . . . . . . . . Unknown Exits Taken 9 | 1 1 . . 1 1 1 1 1 . . 1 1 . Scrap Searched 5 | . . . . . . . . . . . . 2 3 Spaces Dug . | . . . . . . . . . . . . . . Terrain Destroyed 66 | . 4 . . . . 4 3 3 . . 29 18 5 Melee . | . . . . . . . . . . . . . . Projectile 43 | . . . . . . 4 3 . . . 13 18 5 AOE 23 | . 4 . . . . . . 3 . . 16 . . Terrain Rammed . | . . . . . . . . . . . . . . Walls Destroyed . | . . . . . . . . . . . . . . Machines Disabled . | . . . . . . . . . . . . . . Actions | -11 -10 -9 -9 -9 -7 -6 -6 -5 -4 -4 -4 -4 -4 --------- Run | Jun Mat Mat Sto Rec Fac Fac Ext Fac Fac Was Fac Upp Upp Total 7819 | 54 413 477 581 333 1384 249 632 1247 316 368 480 758 527 Wait 666 | . 26 24 23 2 138 23 68 221 . . 80 44 17 Move 6251 | 48 360 372 433 323 1110 214 434 874 282 340 353 647 461 Hop 9 | . . 9 . . . . . . . . . . . Pick Up 114 | . 6 12 13 1 10 2 14 25 11 7 3 5 5 Fast Attach 52 | 6 3 . 6 . 7 1 8 11 . 4 2 . 4 Attach 90 | . 2 7 4 . 7 2 17 17 11 4 1 12 6 Detach 11 | . . 1 3 . 1 . . 1 4 . . 1 . Swap 41 | . . 5 3 2 11 1 4 8 1 2 2 2 . Drop 56 | . 4 6 11 1 6 . 4 10 2 8 4 . . Fire 480 | . 12 40 68 3 72 6 83 78 5 1 34 46 32 Melee . | . . . . . . . . . . . . . . Ram . | . . . . . . . . . . . . . . Kick 21 | . . 1 . . 16 . . 2 . . . . 2 Crush 14 | . . . 6 . 6 . . . . . 1 1 . Escape Stasis 11 | . . . 11 . . . . . . . . . . Rewire 3 | . . . . 1 . . . . . 2 . . . Trap . | . . . . . . . . . . . . . . Miscellaneous . | . . . . . . . . . . . . . . Route ------- -11/Junkyard -10/Materials -9/Materials (discovered 5 exits: [*Mat] / *Min x2 / *Sto x2) -9/Storage -9/Recycling -7/Factory -6/Factory -6/Extension (discovered 2 exits: *Fac / [*Cet]) -5/Factory -4/Factory -4/Waste -4/Factory -4/Upper Caves -4/Upper Caves History --------- Turn | Location | Event 2 | -11/Junkyard | Met Revision 17 7 | -11/Junkyard | Discovered new exit (range 16) 66 | -11/Junkyard | Entered Materials 313 | -10/Materials | Build established: Mutant 473 | -10/Materials | Discovered new exit (range 9) 578 | -10/Materials | Entered another Materials area 578 | -9/Materials | Evolved 2 slots: Propulsion x1, Utility x1 727 | -9/Materials | Discovered new exit (range 15) 980 | -9/Materials | Discovered new exit (range 16) 990 | -9/Materials | Identified exit to Mines 990 | -9/Materials | Identified exit to Storage 1041 | -9/Materials | Discovered new exit (range 9) 1042 | -9/Materials | Entered Storage 1057 | -9/Storage | Lost 3 parts (2n1w) 1422 | -9/Storage | Build established: Scavenger-Mutant 1613 | -9/Storage | Core integrity fell below 50% 1734 | -9/Storage | Identified exit to Recycling 1942 | -9/Storage | Used back door to open Recycling access 1946 | -9/Storage | Entered Recycling 2360 | -9/Recycling | Discovered new exit (range 16) 2480 | -9/Recycling | Entered Factory 2480 | -7/Factory | Evolved 4 slots: Power x1, Propulsion x1, Utility x2 2920 | -7/Factory | Build established: Hacker-Mutant 3183 | -7/Factory | Lost 5 parts (2p2n1u) 3844 | -7/Factory | Build established: Mutant 3979 | -7/Factory | Repaired Broken Ion Burst Cannon 4636 | -7/Factory | Discovered new exit (range 15) 4684 | -7/Factory | Entered another Factory area 4684 | -6/Factory | Evolved 2 slots: Utility x2 4922 | -6/Factory | Discovered new exit (range 18) 4940 | -6/Factory | Entered Extension 5011 | -6/Extension | Spotted B-75 Beast 5043 | -6/Extension | Destroyed B-75 Beast 5053 | -6/Extension | Spotted B-75 Beast 5104 | -6/Extension | Lost 5 parts (2p2n1u) 5165 | -6/Extension | Disrupted transfer network 5419 | -6/Extension | Destroyed B-75 Beast 5492 | -6/Extension | Core integrity fell below 50% 5525 | -6/Extension | Lost 7 parts (1p2n2u2w) 5761 | -6/Extension | System corruption reached 10% 5762 | -6/Extension | Core integrity fell below 20% 5800 | -6/Extension | Lost 11 parts (2p2n2u5w) 5909 | -6/Extension | Discovered new exit (range 18) 5911 | -6/Extension | Discovered new exit (range 16) 5943 | -6/Extension | Entered Factory 5943 | -5/Factory | Evolved 2 slots: Utility x2 6097 | -5/Factory | Build established: Scavenger-Mutant 6536 | -5/Factory | Repaired Carbon-fiber Leg 6596 | -5/Factory | Garrison activated, responded to threat 6857 | -5/Factory | Garrison activated, responded to threat 6940 | -5/Factory | Lost 10 parts (2p4n3u1w) 7194 | -5/Factory | Repaired Hvy. Gatling Laser 7494 | -5/Factory | System corruption reached 10% 7536 | -5/Factory | Lost 5 parts (1p4u) 7646 | -5/Factory | Discovered new exit (range 5) 7664 | -5/Factory | Entered another Factory area 7664 | -4/Factory | Evolved 2 slots: Utility x1, Weapon x1 8152 | -4/Factory | Sucked down chute 8152 | -4/Factory | Entered Waste 8153 | -4/Waste | Joined by Warlord forces that had cleared the area 8187 | -4/Waste | Found Prototype Device 8188 | -4/Waste | Identified Thermal Barrier 8210 | -4/Waste | A Compactor rumbled back to life 8210 | -4/Waste | Spotted C-40 Crusher 8211 | -4/Waste | Allies destroyed C-40 Crusher 8270 | -4/Waste | A Compactor rumbled back to life 8270 | -4/Waste | Spotted C-40 Crusher 8270 | -4/Waste | Allies destroyed C-40 Crusher 8540 | -4/Waste | Build established: Scavenger-Tank 8669 | -4/Waste | Discovered new exit (range 12) 8680 | -4/Waste | A Compactor rumbled back to life 8680 | -4/Waste | Spotted C-40 Crusher 8687 | -4/Waste | Destroyed C-40 Crusher 8698 | -4/Waste | Entered Factory 8698 | -4/Factory | Accompanied by 19 allies 8960 | -4/Factory | Repaired Enh. Nova Cannon 9031 | -4/Factory | Garrison activated, responded to threat 9198 | -4/Factory | First assault squad dispatched 9403 | -4/Factory | Destroyed 7 combat bots 9416 | -4/Factory | Discovered new exit (range 7) 9435 | -4/Factory | Entered Upper Caves 9495 | -4/Upper Caves | Learned location of 1 exit from Research 9537 | -4/Upper Caves | Learned location of Armory (-4) 9537 | -4/Upper Caves | Learned Factory trap positions 9537 | -4/Upper Caves | Learned Armory trap positions 9537 | -4/Upper Caves | Learned Armory emergency access door positions 9537 | -4/Upper Caves | Learned Factory stockpile data 10378 | -4/Upper Caves | Core integrity fell below 50% 10401 | -4/Upper Caves | Lost 6 parts (1p1n3u1w) 10413 | -4/Upper Caves | Attracted the attention of an 0b10 base 10478 | -4/Upper Caves | Lost 6 parts (1p1n1u3w) 10484 | -4/Upper Caves | Destroyed 7 combat bots 10602 | -4/Upper Caves | Discovered new exit (range 10) 10614 | -4/Upper Caves | Entered another Upper Caves area 10843 | -4/Upper Caves | Build established: Scavenger-Mutant 11220 | -4/Upper Caves | Attracted the attention of an 0b10 base 11260 | -4/Upper Caves | Core integrity fell below 20% 11275 | -4/Upper Caves | Destroyed by S-27 Virus with Autogun Last Messages --------------- 11261_ HERF Cannon destroyed. 11262_ VTOL Module fries itself beyond repair. 11262_ Lgt. Nuclear Core destroyed. 11262_ Kicked S-27 Virus. 11264_ Destroyed Lgt. Antimatter Reactor. 11264_ G-67 Veteran knocked back. 11265_ Hvy. Gauss Cannon destroyed. 11265_ Myomer Leg destroyed. 11266_ G-67 Veteran heat damages Plasma Rifle. 11268_ Imp. Particle Charger destroyed. 11269_ Med. Storage Unit destroyed. 11270_ G-67 Veteran heat damages Flexi-carbon Leg, Flexi-carbon Leg, Plasma Rifle. 11271_ G-67 Veteran IFF system glitched. 11271_ Autogun destroyed. 11272_ Penetrated by Slug. 11272_ Slug penetrates Wall. 11272_ Acquired 14 matter. 11273_ S-27 Virus destroyed. 11274_ Acquired 20 matter. Map ----- +----------------------------------------------------+ | ??????????????????????????????? ### | | ??????????????????????????????? ! | | ???????????????????????????????# % | | ????????????????????????????????????### ### | | ??????????????????????????????????????## ???# | | ???????????????????????????????????????###?????## | | ????????????????????????????????????????????????## | | ????????????????????????????????? ??????????????# | | ??????????????????????????#?????? ?????????????## | | ?????????????????????????? ?????? ??????###????# | | ?????????????????????????? ?????? #??#### ##??#% | | ??????????????????????####+#????# #??# #??# | | ??????????????????????#""" ?? # #??# #### | | ??????????????????????# # #### %## | | ?????????????????+????? """ # #?# | | ?????????????????+ ???? $ """ # #?#### % | | ?????????????????+ ???? """ # #????## % | | ?????????????????+ ???? """ ?# ???#### # | | ?????????????????#" ????%%Y ??# ??# % # | | ?????????????????# " ???"%! ???# #?# % | | ?????????????????#" ####s#????# # ## % | | ?????????????????#"" gg* !#????# # | | ?????????????????#" % %! #????# ## | | ?????????# ## #######;s####### ###### | | ???????? % % ##### | | ???????? %%@ % | | ??????????# ######;#### ### % ### | | ???????????#????????# #???## #?############ ##?? | | ????????????????????##?????###????????????#####??? | | ?????????????????????????????????????????????????? | | ?????????????????????????????????????????????????? | | ?????????????????????????????????????????????????? | | ?????????????????????????????????????????????????? | | ?????????????????????????????????????????????????? | | ?????????????????????????????????????????????????? | | ?????????????????????????????????????????????????? | | ?????????????????????????????????????????????????? | | ?????????????????????????????????????????????????? | | ?????????????????????????????????????????????????? | | ?????????????????????????????????????????????????? | | ?????????????????????????????????????????????????? | | ?????????????????????????????????????????????????? | | ?????????????????????????????????????????????????? | | ?????????????????????????????????????????????????? | | | | | | | | | | | | | +----------------------------------------------------+ Best States ------------- Heat Dissipation 89 Energy Generation 35 Energy Capacity 535 Matter Stores 300 Matter Capacity 300 Sight Range 18 Terrain Scan Range 20 Terrain Scan Density 10 Additional Mass Support 6 Armor Coverage 1350 Resistance: KI 20 Resistance: TH 20 Resistance: EX 20 Resistance: EM 20 Resistance: I 20 Resistance: S 20 Resistance: P 20 Core Shielding 20 Propulsion Shielding 66 Point Defense Rating 80 Phase Shifting 5 Evasion (%) 63 Targeting Accuracy 6 Core Analysis 6 Recoil Reduction 4 Particle Charging 20 Offensive Hacking 20 Item Schematics ----------------- None Robot Schematics ------------------ None Fabricated ------------ Nothing Alien Tech Used ----------------- None Achievements -------------- Power Corrupts Respectable Loadout Storm Trooper We Are Legion \\IAMDERELICT Challenges ------------ None Game ------ Seed AssembledThermalMinigun Manual? 0 Play Time 02:21:11 Cumulative 19.1 hours Start 2023.07.04 @ 20:24:58 End 2023.07.06 @ 17:19:42 Sessions 5 Manual Loads 0 Difficulty Adventurer Special Mode None Game No. 17 Rogue 0 Adventurer 17 Explorer 0 Win Type - Total 0 Types 0/0/0/0/0/0/0/0/0 Lore% 19 Gallery% 23 Achievement% 22 Wizard Run 0 Options --------- ASCII 0 Keyboard 0 Movement Arrows Keybinds 0 Fullscreen 1 Font 18/SmallcapsGlow Map View 76x50 Tactical HUD 1 Map Filters NONE Filters NONE Steam 1 RUN: e8a0ba9f-3936-4f34-aa99-6570b6f0938b